fUST/lending_fUST_20250814
["ID","MTS","AMOUNT","RATE_DAILY","PERIOD"]
[379064860,1755112255193,-460.0,0.00019726,2]
[379064861,1755112255205,-460.0,0.00019726,2]
[379064862,1755112255215,-460.0,0.00019726,2]
[379064863,1755112255224,-706.91,0.00019726,2]
[379064864,1755112255234,-567.77,0.00019726,2]
[379064865,1755112255243,-460.0,0.00019726,2]
[379064866,1755112255253,-504.02,0.00019726,2]
[379064867,1755112255263,-1000.0,0.00019726,2]
[379064868,1755112255272,-460.0,0.00019726,2]
[379064869,1755112255283,-460.0,0.00019726,2]
[379064870,1755112255292,-492.54,0.00019726,2]
[379064871,1755112255302,-460.0,0.00019726,2]
[379064872,1755112255311,-460.0,0.00019726,2]
[379064873,1755112255321,-857.53,0.00019726,2]
[379064874,1755112255330,-460.0,0.00019726,2]
[379064875,1755112255339,-621.45,0.00019726,2]
[379064876,1755112255349,-460.0,0.00019726,2]
[379064877,1755112255358,-460.0,0.00019726,2]
[379064878,1755112255368,-993.26,0.00019726,2]
[379064879,1755112255377,-460.0,0.00019726,2]
[379064880,1755112255387,-460.0,0.00019726,2]
[379064881,1755112255397,-322.54585734,0.00019726,2]
[379064882,1755112255407,-631.82,0.00019726,2]
[379064883,1755112255416,-460.0,0.00019726,2]
[379064884,1755112255426,-463.56983954,0.00019726,2]
[379064885,1755112255435,-1450.23,0.00019726,2]
[379064886,1755112255445,-758.58,0.00019726,2]
[379064887,1755112255459,-460.0,0.00019726,2]
[379064888,1755112255469,-460.0,0.00019726,2]
[379064889,1755112255478,-478.03,0.00019726,2]
[379064890,1755112255488,-460.0,0.00019726,2]
[379064891,1755112255497,-460.0,0.00019726,2]
[379064892,1755112255507,-460.0,0.00019726,2]
[379064893,1755112255516,-460.0,0.00019726,2]
[379064894,1755112255526,-460.0,0.00019726,2]
[379064895,1755112255535,-667.42,0.00019726,2]
[379064896,1755112255544,-512.05,0.00019726,2]
[379064897,1755112255554,-519.14,0.00019726,2]
[379064898,1755112255563,-460.0,0.00019726,2]
[379064899,1755112255573,-460.0,0.00019726,2]
[379064900,1755112255584,-679.1,0.00019726,2]
[379064901,1755112255594,-1433.16,0.00019726,2]
[379064902,1755112255603,-1322.3,0.00019726,2]
[379064903,1755112255613,-473.90208002,0.00019726,2]
[379064904,1755112255623,-3263.4,0.00019726,2]
[379064905,1755112255635,-488.5,0.00019726,2]
[379064906,1755112255645,-460.0,0.00019726,2]
[379064907,1755112255654,-460.0,0.00019726,2]
[379064908,1755112255663,-460.0,0.00019726,2]
[379064909,1755112255673,-460.0,0.00019726,2]
[379064910,1755112255683,-460.0,0.00019726,2]
[379064911,1755112255692,-460.0,0.00019726,2]
[379064912,1755112255701,-1889.47,0.00019726,2]
[379064913,1755112255711,-460.0,0.00019726,2]
[379064914,1755112255720,-460.0,0.00019726,2]
[379064915,1755112255730,-460.0,0.00019726,2]
[379064916,1755112255739,-1003.25,0.00019726,2]
[379064917,1755112255749,-514.65,0.00019726,2]
[379064918,1755112255758,-398.32,0.00019726,2]
[379064919,1755112255768,-460.0,0.00019726,2]
[379064920,1755112255777,-660.48,0.00019726,2]
[379064921,1755112255786,-460.0,0.00019726,2]
[379064922,1755112255796,-940.35,0.00019726,2]
[379064923,1755112255806,-460.0,0.00019726,2]
[379064924,1755112255816,-460.0,0.00019726,2]
[379064925,1755112255826,-460.0,0.00019726,2]
[379064926,1755112255836,-789.95,0.00019726,2]
[379064927,1755112255845,-497.82,0.00019726,2]
[379064928,1755112255855,-460.0,0.00019726,2]
[379064929,1755112255864,-460.0,0.00019726,2]
[379064930,1755112255873,-460.0,0.00019726,2]
[379064931,1755112255882,-1349.1,0.00019726,2]
[379064932,1755112255891,-1531.04,0.00019726,2]
[379064933,1755112255901,-567.76,0.00019726,2]
[379064934,1755112255911,-735.44,0.00019726,2]
[379064935,1755112255920,-460.0,0.00019726,2]
[379064936,1755112255930,-460.0,0.00019726,2]
[379064937,1755112255939,-1231.08,0.00019726,2]
[379064938,1755112255948,-3916.89,0.00019726,2]
[379064939,1755112255958,-460.0,0.00019726,2]
[379064940,1755112255968,-548.85,0.00019726,2]
[379064941,1755112255977,-460.0,0.00019726,2]
[379064942,1755112255987,-1697.1,0.00019726,2]
[379064943,1755112255996,-460.0,0.00019726,2]
[379064944,1755112256005,-1802.44,0.00019726,2]
[379064945,1755112256015,-460.0,0.00019726,2]
[379064946,1755112256024,-460.0,0.00019726,2]
[379064947,1755112256033,-413.83,0.00019726,2]
[379064948,1755112256042,-460.0,0.00019726,2]
[379064949,1755112256051,-306.27362275,0.00019726,2]
[379064950,1755112256061,-460.0,0.00019726,2]
[379064951,1755112256071,-460.0,0.00019726,2]
[379064952,1755112256080,-484.55818845,0.00019726,2]
[379064953,1755112256090,-1682.02,0.00019726,2]
[379064954,1755112256100,-460.0,0.00019726,2]
[379064955,1755112256109,-481.81,0.00019726,2]
[379064956,1755112256119,-884.28,0.00019726,2]
[379064957,1755112256129,-657.94,0.00019726,2]
[379064958,1755112256139,-1047.96,0.00019726,2]
[379064959,1755112256148,-460.0,0.00019726,2]
[379064960,1755112256158,-460.0,0.00019726,2]
[379064961,1755112256168,-460.0,0.00019726,2]
[379064962,1755112256178,-3634.62,0.00019726,2]
[379064963,1755112256188,-460.0,0.00019726,2]
[379064964,1755112256202,-742.09,0.00019726,2]
[379064965,1755112256212,-460.0,0.00019726,2]
[379064966,1755112256222,-460.0,0.00019726,2]
[379064967,1755112256232,-460.0,0.00019726,2]
[379064968,1755112256242,-4089.87,0.00019726,2]
[379064969,1755112256251,-460.0,0.00019726,2]
[379064970,1755112256261,-460.0,0.00019726,2]
[379064971,1755112256272,-460.0,0.00019726,2]
[379064972,1755112256282,-1288.21,0.00019726,2]
[379064973,1755112256292,-1866.55,0.00019726,2]
[379064974,1755112256302,-10018.09,0.00019726,2]
[379064975,1755112256311,-460.0,0.00019726,2]
[379064976,1755112256320,-460.0,0.00019726,2]
[379064977,1755112256330,-2903.86,0.00019726,2]
[379064978,1755112256340,-460.0,0.00019726,2]
[379064979,1755112256349,-6478.5,0.00019726,2]
[379064980,1755112256359,-460.0,0.00019726,2]
[379064981,1755112256369,-375.8062937,0.00019726,2]
[379064982,1755112256379,-1654.8,0.00019726,2]
[379064983,1755112256390,-460.0,0.00019726,2]
[379064984,1755112256401,-295.1,0.00019726,2]
[379064985,1755112256411,-460.0,0.00019726,2]
[379064986,1755112256421,-460.0,0.00019726,2]
[379064987,1755112256432,-2178.28,0.00019726,2]
[379064988,1755112256443,-819.15,0.00019726,2]
[379064989,1755112256452,-460.0,0.00019726,2]
[379064990,1755112256462,-460.0,0.00019726,2]
[379064991,1755112256472,-461.84,0.00019726,2]
[379064992,1755112256483,-830.77,0.00019726,2]
[379064993,1755112256493,-753.81,0.00019726,2]
[379064994,1755112256503,-460.0,0.00019726,2]
[379064995,1755112256513,-753.21,0.00019726,2]
[379064996,1755112256522,-460.0,0.00019726,2]
[379064997,1755112256532,-460.0,0.00019726,2]
[379064998,1755112256542,-2647.34,0.00019726,2]
[379064999,1755112256552,-587.00090854,0.00019726,2]
[379065000,1755112256562,-460.0,0.00019726,2]
[379065001,1755112256571,-460.0,0.00019726,2]
[379065002,1755112256581,-460.0,0.00019726,2]
[379065003,1755112256592,-460.0,0.00019726,2]
[379065004,1755112256602,-1294.39,0.00019726,2]
[379065005,1755112256612,-460.0,0.00019726,2]
[379065006,1755112256621,-1840.17,0.00019726,2]
[379065007,1755112256631,-460.0,0.00019726,2]
[379065008,1755112256641,-1029.95,0.00019726,2]
[379065009,1755112256650,-460.0,0.00019726,2]
[379065010,1755112256660,-460.0,0.00019726,2]
[379065011,1755112256670,-715.95,0.00019726,2]
[379065012,1755112256680,-460.0,0.00019726,2]
[379065013,1755112256689,-460.0,0.00019726,2]
[379065014,1755112256698,-460.0,0.00019726,2]
[379065015,1755112256709,-626.76,0.00019726,2]
[379065016,1755112256720,-460.0,0.00019726,2]
[379065017,1755112256731,-1174.73,0.00019726,2]
[379065018,1755112256740,-460.0,0.00019726,2]
[379065019,1755112256750,-460.0,0.00019726,2]
[379065020,1755112256760,-507.11,0.00019726,2]
[379065021,1755112256770,-460.0,0.00019726,2]
[379065022,1755112256779,-1646.74,0.00019726,2]
[379065023,1755112256788,-460.0,0.00019726,2]
[379065024,1755112256798,-460.0,0.00019726,2]
[379065025,1755112256807,-460.0,0.00019726,2]
[379065026,1755112256817,-462.97178125,0.00019726,2]
[379065027,1755112256826,-460.0,0.00019726,2]
[379065028,1755112256835,-573.62,0.00019726,2]
[379065029,1755112256844,-1879.55,0.00019726,2]
[379065030,1755112256853,-460.0,0.00019726,2]
[379065031,1755112256863,-1632.25,0.00019726,2]
[379065032,1755112256872,-460.0,0.00019726,2]
[379065033,1755112256883,-460.0,0.00019726,2]
[379065034,1755112256892,-795.75,0.00019726,2]
[379065035,1755112256901,-460.0,0.00019726,2]
[379065036,1755112256911,-460.0,0.00019726,2]
[379065037,1755112256920,-460.0,0.00019726,2]
[379065038,1755112256929,-3889.15,0.00019726,2]
[379065039,1755112256938,-460.0,0.00019726,2]
[379065040,1755112256947,-460.0,0.00019726,2]
[379065041,1755112256957,-1027.75,0.00019726,2]
[379065042,1755112256966,-460.0,0.00019726,2]
[379065043,1755112256975,-460.0,0.00019726,2]
[379065044,1755112256985,-460.0,0.00019726,2]
[379065045,1755112256995,-460.0,0.00019726,2]
[379065046,1755112257004,-2425.48,0.00019726,2]
[379065047,1755112257014,-1935.24,0.00019726,2]
[379065048,1755112257024,-460.0,0.00019726,2]
[379065049,1755112257034,-1325.06,0.00019726,2]
[379065050,1755112257043,-460.0,0.00019726,2]
[379065051,1755112257053,-460.0,0.00019726,2]
[379065052,1755112257062,-654.19,0.00019726,2]
[379065053,1755112257071,-460.0,0.00019726,2]
[379065054,1755112257081,-460.0,0.00019726,2]
[379065055,1755112257091,-460.0,0.00019726,2]
[379065056,1755112257100,-460.0,0.00019726,2]
[379065057,1755112257111,-1902.87,0.00019726,2]
[379065058,1755112257285,-460.0,0.00019726,2]
[379065059,1755112257295,-460.0,0.00019726,2]
[379065060,1755112257307,-460.0,0.00019726,2]
[379065061,1755112257317,-460.0,0.00019726,2]
[379065062,1755112257327,-460.0,0.00019726,2]
[379065063,1755112257336,-460.0,0.00019726,2]
[379065064,1755112257346,-427.54657323,0.00019726,2]
[379065065,1755112257356,-460.0,0.00019726,2]
[379065066,1755112257367,-601.85,0.00019726,2]
[379065067,1755112257376,-1058.53,0.00019726,2]
[379065068,1755112257387,-460.0,0.00019726,2]
[379065069,1755112257396,-200.66094873,0.00019726,2]
[379065070,1755112257406,-460.0,0.00019726,2]
[379065071,1755112257416,-498.54,0.00019726,2]
[379065072,1755112257426,-460.0,0.00019726,2]
[379065073,1755112257435,-460.0,0.00019726,2]
[379065074,1755112257446,-1749.22,0.00019726,2]
[379065075,1755112257456,-975.8,0.00019726,2]
[379065076,1755112257466,-460.0,0.00019726,2]
[379065077,1755112257476,-460.0,0.00019726,2]
[379065078,1755112257485,-460.0,0.00019726,2]
[379065079,1755112257495,-1789.12,0.00019726,2]
[379065080,1755112257504,-601.68,0.00019726,2]
[379065081,1755112257514,-1663.02,0.00019726,2]
[379065082,1755112257524,-460.0,0.00019726,2]
[379065083,1755112257533,-721.24,0.00019726,2]
[379065084,1755112257543,-460.0,0.00019726,2]
[379065085,1755112257553,-461.84428375,0.00019741,2]
[379065086,1755112257563,-160.0,0.00019741,2]
[379065087,1755112257572,-160.0,0.00019741,2]
[379065088,1755112257581,-528.09767282,0.00019741,2]
[379065089,1755112257591,-160.0,0.00019741,2]
[379065090,1755112257601,-160.0,0.00019741,2]
[379065091,1755112257611,-160.0,0.00019741,2]
[379065092,1755112257620,-160.0,0.00019741,2]
[379065093,1755112257630,-160.0,0.00019741,2]
[379065094,1755112257639,-417.15472785,0.00019741,2]
[379065095,1755112257649,-843.29866057,0.00019741,2]
[379065096,1755112257659,-215.55264861,0.00019741,2]
[379065097,1755112257668,-160.0,0.00019741,2]
[379065098,1755112257678,-603.0,0.00019894,2]
[379065099,1755112257687,-3000.0,0.000199,2]
[379065100,1755112257697,-3778.15646745,0.000199,2]
[379065101,1755112257708,-212.55416262,0.000199,2]
[379065102,1755112258001,-1958.12217936,0.000199,2]
[379065103,1755112258226,-460.0,0.00019178,2]
[379065104,1755112258236,-460.0,0.00019452,2]
[379065105,1755112258246,-460.0,0.00019726,2]
[379065106,1755112258257,-3748.98861781,0.000199,2]
[379065107,1755112258267,-460.0,0.0002,2]
[379065108,1755112258278,-460.0,0.0002,2]
[379065109,1755112258288,-242.68486708,0.0002,2]
[379065110,1755112258302,-460.0,0.0002,2]
[379065111,1755112258313,-460.0,0.0002,2]
[379065112,1755112258323,-460.0,0.0002,2]
[379065113,1755112258334,-460.0,0.0002,2]
[379065114,1755112258344,-460.0,0.0002,2]
[379065115,1755112258355,-460.0,0.0002,2]
[379065116,1755112258365,-460.0,0.0002,2]
[379065117,1755112258376,-460.0,0.0002,2]
[379065118,1755112258386,-460.0,0.0002,2]
[379065119,1755112258396,-460.0,0.0002,2]
[379065120,1755112258406,-460.0,0.0002,2]
[379065121,1755112258417,-298.52859351,0.0002,2]
[379065122,1755112258428,-460.0,0.0002,2]
[379065123,1755112258437,-611.02292778,0.0002,2]
[379065124,1755112258447,-460.0,0.0002,2]
[379065125,1755112258457,-491.15,0.0002,2]
[379065126,1755112258467,-460.0,0.0002,2]
[379065127,1755112258477,-577.42,0.0002,2]
[379065128,1755112258487,-460.0,0.0002,2]
[379065129,1755112258497,-460.0,0.0002,2]
[379065130,1755112258507,-630.9,0.0002,2]
[379065131,1755112258516,-460.0,0.0002,2]
[379065132,1755112258527,-460.0,0.0002,2]
[379065133,1755112258536,-460.0,0.0002,2]
[379065134,1755112258546,-331.69770784,0.0002,2]
[379065135,1755112258556,-460.0,0.0002,2]
[379065136,1755112258565,-460.0,0.0002,2]
[379065137,1755112258575,-460.0,0.0002,2]
[379065138,1755112258585,-460.0,0.0002,2]
[379065139,1755112258594,-460.0,0.0002,2]
[379065140,1755112258604,-460.0,0.0002,2]
[379065141,1755112258614,-460.0,0.0002,2]
[379065142,1755112258624,-460.0,0.0002,2]
[379065143,1755112258633,-460.0,0.0002,2]
[379065144,1755112258644,-460.0,0.0002,2]
[379065145,1755112258654,-460.0,0.0002,2]
[379065146,1755112258664,-460.0,0.0002,2]
[379065147,1755112258674,-286.6069143,0.0002,2]
[379065148,1755112258683,-169.04222803,0.0002,2]
[379065149,1755112258697,-290.95777197,0.0002,2]
[379065150,1755112258707,-460.0,0.0002,2]
[379065151,1755112258717,-385.14130556,0.0002,2]
[379065152,1755112258726,-460.0,0.0002,2]
[379065153,1755112258736,-337.73469379,0.0002,2]
[379065154,1755112258745,-391.89860504,0.0002,2]
[379065155,1755112258755,-227.12705748,0.0002,2]
[379065156,1755112258764,-208.4747781,0.0002,2]
[379065157,1755112258774,-595.56,0.0002,2]
[379065158,1755112258784,-1192.07,0.0002,2]
[379065159,1755112258794,-460.0,0.0002,2]
[379065160,1755112258804,-460.0,0.0002,2]
[379065161,1755112258814,-460.0,0.0002,2]
[379065162,1755112258823,-460.0,0.0002,2]
[379065163,1755112258833,-460.0,0.0002,2]
[379065164,1755112258843,-460.0,0.0002,2]
[379065165,1755112258853,-460.0,0.0002,2]
[379065166,1755112258863,-508.41,0.0002,2]
[379065167,1755112258875,-460.0,0.0002,2]
[379065168,1755112258885,-460.0,0.0002,2]
[379065169,1755112258895,-381.7144598,0.0002,2]
[379065170,1755112258904,-1521.53,0.0002,2]
[379065171,1755112258915,-877.83,0.0002,2]
[379065172,1755112258926,-460.0,0.0002,2]
[379065173,1755112258936,-499.59,0.0002,2]
[379065174,1755112258945,-814.41,0.0002,2]
[379065175,1755112258955,-460.0,0.0002,2]
[379065176,1755112258965,-460.0,0.0002,2]
[379065177,1755112258975,-460.0,0.0002,2]
[379065178,1755112258984,-460.0,0.0002,2]
[379065179,1755112258993,-500.0,0.0002,2]
[379065180,1755112259003,-984.07,0.0002,2]
[379065181,1755112259012,-460.0,0.0002,2]
[379065182,1755112259022,-460.0,0.0002,2]
[379065183,1755112259031,-460.0,0.0002,2]
[379065184,1755112259041,-235.80876945,0.0002,2]
[379065185,1755112259050,-460.0,0.0002,2]
[379065186,1755112259059,-984.43,0.0002,2]
[379065187,1755112259068,-1471.49,0.0002,2]
[379065188,1755112259078,-460.0,0.0002,2]
[379065189,1755112259087,-460.0,0.0002,2]
[379065190,1755112259097,-460.0,0.0002,2]
[379065191,1755112259106,-460.0,0.0002,2]
[379065192,1755112259117,-1239.32,0.0002,2]
[379065193,1755112259128,-460.0,0.0002,2]
[379065194,1755112259138,-1419.18,0.0002,2]
[379065195,1755112259147,-705.7,0.0002,2]
[379065196,1755112259157,-460.0,0.0002,2]
[379065197,1755112259167,-283.00726101,0.0002,2]
[379065198,1755112259177,-1289.48,0.0002,2]
[379065199,1755112259186,-337.95898885,0.0002,2]
[379065200,1755112259196,-460.0,0.0002,2]
[379065201,1755112259206,-460.0,0.0002,2]
[379065202,1755112259216,-588.47,0.0002,2]
[379065203,1755112259226,-977.14,0.0002,2]
[379065204,1755112259235,-460.0,0.0002,2]
[379065205,1755112259245,-460.0,0.0002,2]
[379065206,1755112259254,-460.0,0.0002,2]
[379065207,1755112259264,-460.0,0.0002,2]
[379065208,1755112259273,-649.5,0.0002,2]
[379065209,1755112259283,-549.68,0.0002,2]
[379065210,1755112259293,-732.27,0.0002,2]
[379065211,1755112259303,-460.0,0.0002,2]
[379065212,1755112259312,-460.0,0.0002,2]
[379065213,1755112259322,-460.0,0.0002,2]
[379065214,1755112259331,-548.95,0.0002,2]
[379065215,1755112259339,-460.0,0.0002,2]
[379065216,1755112259348,-460.0,0.0002,2]
[379065217,1755112259357,-460.0,0.0002,2]
[379065218,1755112259366,-1737.8,0.0002,2]
[379065219,1755112259376,-460.0,0.0002,2]
[379065220,1755112259385,-460.0,0.0002,2]
[379065221,1755112259395,-460.0,0.0002,2]
[379065222,1755112259404,-460.0,0.0002,2]
[379065223,1755112259414,-954.21,0.0002,2]
[379065224,1755112259423,-460.0,0.0002,2]
[379065225,1755112259433,-460.0,0.0002,2]
[379065226,1755112259444,-300.9115811,0.0002,2]
[379065227,1755112259453,-661.52,0.0002,2]
[379065228,1755112259462,-460.0,0.0002,2]
[379065229,1755112259472,-460.0,0.0002,2]
[379065230,1755112259481,-460.0,0.0002,2]
[379065231,1755112259491,-460.0,0.0002,2]
[379065232,1755112259501,-460.0,0.0002,2]
[379065233,1755112259511,-460.0,0.0002,2]
[379065234,1755112259520,-463.99785482,0.0002,2]
[379065235,1755112259529,-817.84,0.0002,2]
[379065236,1755112259539,-460.0,0.0002,2]
[379065237,1755112259549,-460.0,0.0002,2]
[379065238,1755112259559,-460.0,0.0002,2]
[379065239,1755112259569,-460.0,0.0002,2]
[379065240,1755112259579,-460.0,0.0002,2]
[379065241,1755112259589,-460.0,0.0002,2]
[379065242,1755112259598,-539.72,0.0002,2]
[379065243,1755112259608,-894.44,0.0002,2]
[379065244,1755112259618,-460.0,0.0002,2]
[379065245,1755112259627,-460.0,0.0002,2]
[379065246,1755112259638,-460.0,0.0002,2]
[379065247,1755112259648,-340.0,0.0002,2]
[379065248,1755112259705,-460.0,0.0002,2]
[379065249,1755112259714,-460.0,0.0002,2]
[379065250,1755112259724,-726.71,0.0002,2]
[379065251,1755112259734,-460.0,0.0002,2]
[379065252,1755112259743,-460.0,0.0002,2]
[379065253,1755112259753,-522.50943268,0.0002,2]
[379065254,1755112259762,-460.0,0.0002,2]
[379065255,1755112259771,-460.0,0.0002,2]
[379065256,1755112259781,-460.0,0.0002,2]
[379065257,1755112259791,-460.0,0.0002,2]
[379065258,1755112259801,-610.59,0.0002,2]
[379065259,1755112259811,-460.0,0.0002,2]
[379065260,1755112259821,-560.11,0.0002,2]
[379065261,1755112259830,-398.85173787,0.0002,2]
[379065262,1755112259839,-460.0,0.0002,2]
[379065263,1755112259849,-464.88,0.0002,2]
[379065264,1755112259858,-2656.48,0.0002,2]
[379065265,1755112259868,-460.0,0.0002,2]
[379065266,1755112259877,-460.0,0.0002,2]
[379065267,1755112259887,-460.0,0.0002,2]
[379065268,1755112259897,-460.0,0.0002,2]
[379065269,1755112259908,-683.27,0.0002,2]
[379065270,1755112259919,-797.72,0.0002,2]
[379065271,1755112259930,-460.0,0.0002,2]
[379065272,1755112259939,-154.85043094,0.0002,2]
[379065273,1755112259948,-460.0,0.0002,2]
[379065274,1755112259958,-460.0,0.0002,2]
[379065275,1755112259967,-460.0,0.0002,2]
[379065276,1755112259977,-604.18,0.0002,2]
[379065277,1755112259986,-460.0,0.0002,2]
[379065278,1755112259995,-475.94,0.0002,2]
[379065279,1755112260005,-460.0,0.0002,2]
[379065280,1755112260014,-460.0,0.0002,2]
[379065281,1755112260024,-460.0,0.0002,2]
[379065282,1755112260034,-839.34,0.0002,2]
[379065283,1755112260044,-460.0,0.0002,2]
[379065284,1755112260054,-460.0,0.0002,2]
[379065285,1755112260064,-462.34270753,0.0002,2]
[379065286,1755112260073,-731.73,0.0002,2]
[379065287,1755112260083,-460.0,0.0002,2]
[379065288,1755112260094,-460.0,0.0002,2]
[379065289,1755112260104,-273.11519005,0.0002,2]
[379065290,1755112260114,-460.0,0.0002,2]
[379065291,1755112260127,-460.0,0.0002,2]
[379065292,1755112260137,-460.0,0.0002,2]
[379065293,1755112260146,-460.0,0.0002,2]
[379065294,1755112260156,-1296.92,0.0002,2]
[379065295,1755112260166,-460.0,0.0002,2]
[379065296,1755112260175,-460.0,0.0002,2]
[379065297,1755112260186,-460.0,0.0002,2]
[379065298,1755112260195,-525.91,0.0002,2]
[379065299,1755112260206,-460.0,0.0002,2]
[379065300,1755112260215,-2321.42,0.0002,2]
[379065301,1755112260225,-1019.53,0.0002,2]
[379065302,1755112260234,-460.0,0.0002,2]
[379065303,1755112260244,-460.0,0.0002,2]
[379065304,1755112260254,-460.0,0.0002,2]
[379065305,1755112260264,-839.99,0.0002,2]
[379065306,1755112260273,-516.19,0.0002,2]
[379065307,1755112260283,-751.64,0.0002,2]
[379065308,1755112260292,-6346.14,0.0002,2]
[379065309,1755112260302,-460.0,0.0002,2]
[379065310,1755112260312,-1948.58,0.0002,2]
[379065311,1755112260321,-1204.3,0.0002,2]
[379065312,1755112260331,-460.0,0.0002,2]
[379065313,1755112260341,-2168.24,0.0002,2]
[379065314,1755112260351,-460.0,0.0002,2]
[379065315,1755112260360,-460.0,0.0002,2]
[379065316,1755112260370,-495.17424184,0.0002,2]
[379065317,1755112260380,-460.0,0.0002,2]
[379065318,1755112260390,-460.0,0.0002,2]
[379065319,1755112260399,-460.0,0.0002,2]
[379065320,1755112260410,-460.0,0.0002,2]
[379065321,1755112260420,-460.0,0.0002,2]
[379065322,1755112260429,-1245.83,0.0002,2]
[379065323,1755112260439,-460.0,0.0002,2]
[379065324,1755112260448,-651.64,0.0002,2]
[379065325,1755112260459,-840.79,0.0002,2]
[379065326,1755112260469,-460.0,0.0002,2]
[379065327,1755112260478,-460.0,0.0002,2]
[379065328,1755112260489,-791.23,0.0002,2]
[379065329,1755112260499,-460.0,0.0002,2]
[379065330,1755112260508,-460.0,0.0002,2]
[379065331,1755112260517,-460.0,0.0002,2]
[379065332,1755112260527,-699.69,0.0002,2]
[379065333,1755112260537,-460.0,0.0002,2]
[379065334,1755112260546,-460.0,0.0002,2]
[379065335,1755112260557,-460.0,0.0002,2]
[379065336,1755112260567,-460.0,0.0002,2]
[379065337,1755112260577,-1808.41,0.0002,2]
[379065338,1755112260587,-460.0,0.0002,2]
[379065339,1755112260597,-3777.68,0.0002,2]
[379065340,1755112260607,-460.0,0.0002,2]
[379065341,1755112260617,-460.0,0.0002,2]
[379065342,1755112260627,-460.0,0.0002,2]
[379065343,1755112260638,-460.0,0.0002,2]
[379065344,1755112260649,-668.7,0.0002,2]
[379065345,1755112260659,-908.74,0.0002,2]
[379065346,1755112260669,-460.0,0.0002,2]
[379065347,1755112260679,-460.0,0.0002,2]
[379065348,1755112260688,-484.70791871,0.0002,2]
[379065349,1755112260698,-460.0,0.0002,2]
[379065350,1755112260708,-460.0,0.0002,2]
[379065351,1755112260717,-460.0,0.0002,2]
[379065352,1755112260727,-460.0,0.0002,2]
[379065353,1755112260737,-537.7,0.0002,2]
[379065354,1755112260747,-460.0,0.0002,2]
[379065355,1755112260757,-460.0,0.0002,2]
[379065356,1755112260766,-460.0,0.0002,2]
[379065357,1755112260776,-460.0,0.0002,2]
[379065358,1755112260786,-706.91,0.0002,2]
[379065359,1755112260796,-567.77,0.0002,2]